[Event "5th Baskent University Open 2022"]
[Site "Ankara"]
[Date "2022.06.26"]
[Round "1.1"]
[White "Turker, Esat Tuna"]
[Black "Arhimow, Mohamed Salem"]
[Result "0-1"]
[ECO "D36"]
[WhiteElo "1498"]
[BlackElo "1648"]
[Annotator "NA RC"]
[PlyCount "72"]
[EventDate "2022.07.02"]
[EventType "swiss"]
[EventCountry "TUR"]
[SourceTitle "playchess.com"]
[Source "ChessBase"]
[SourceQuality "1"]
[TimeControl "5400+30"]

1. d4 d5 2. c4 e6 3. cxd5 exd5 4. Nc3 Nf6 5. Bg5 Be7 6. e3 c6 7. Bd3 Nbd7 8. Qc2 O-O 9. Nge2 Re8 10. O-O h6 11. Bh4 b5 12. a3 a5 {[%emt 0:46:30]} 13. f3 {[%emt 0:35:00]} Qb6 {[%emt 0:00:30]} 14. Bf2 {[%emt 0:02:30]} Ba6 {[%emt 0:00:30]} 15. e4 {[%emt 0:05:30]} dxe4 {[%emt 0:02:30]} 16. fxe4 {[%emt 0:00:00]} Ng4 {[%emt 0:02:30]} 17. Nb1 {[%emt 0:03:00]} Bg5 {[%emt 0:05:30]} 18. Kh1 {[%emt 0:03:30]} c5 {[%emt 0:02:30]} 19. Qd1 {[%emt 0:01:30]} Nxf2+ {[%emt 0:01:30]} 20. Rxf2 {[%emt 0:00:30]} cxd4 {[%emt 0:00:30]} 21. h3 {[%emt 0:00:30]} Be3 {[%emt 0:00:30]} 22. Rf5 {[%emt 0:00:30]} Ne5 {[%emt 0:00:30]} 23. Ng3 {[%emt 0:00:30]} g6 {[%emt 0:00:30]} 24. Rf1 {[%emt 0:00:30]} Nxd3 {[%emt 0:00:30]} 25. Qxd3 {[%emt 0:00:30]} b4 {[%emt 0:00:30]} 26. Qb3 {[%emt 0:00:30]} Bxf1 {[%emt 0:00:30]} 27. Nxf1 {[%emt 0:00:30]} Rxe4 {[%emt 0:00:30]} 28. axb4 {[%emt 0:00:30]} Rf4 {[%emt 0:00:30]} 29. Nbd2 {[%emt 0:00:30]} a4 {[%emt 0:00:30]} 30. Rxa4 {[%emt 0:00:30]} Rxa4 {[%emt 0:00:30]} 31. Qxa4 {[%emt 0:00:30]} Rf2 {[%emt 0:00:30]} 32. Qe8+ {[%emt 0:00:30]} Kh7 {[%emt 0:00:30]} 33. Nxe3 {[%emt 0:00:30]} dxe3 {[%emt 0:00:30]} 34. Nc4 {[%emt 0:00:30]} Rf1+ {[%emt 0:00:30]} 35. Kh2 {[%emt 0:00:30]} Qc7+ {[%emt 0:00:30]} 36. Ne5 {[%emt 0:01:30]} Rf5 {[%emt 0:00:30]} 0-1

[Event "5th Baskent University Open 2022"]
[Site "Ankara"]
[Date "2022.06.26"]
[Round "1.2"]
[White "Dilen, Bedirhan"]
[Black "Ari, Hasancan"]
[Result "1-0"]
[ECO "D02"]
[WhiteElo "1621"]
[BlackElo "1491"]
[Annotator "NA RC"]
[PlyCount "99"]
[EventDate "2022.07.02"]
[EventType "swiss"]
[EventCountry "TUR"]
[SourceTitle "playchess.com"]
[Source "ChessBase"]
[SourceQuality "1"]
[TimeControl "5400+30"]

1. d4 c6 2. Nf3 Nf6 3. Bf4 d5 4. e3 Qb6 {[%emt 0:32:30]} 5. Qc1 {[%emt 0:38:00]} Bf5 {[%emt 0:02:30]} 6. Nbd2 {[%emt 0:00:30]} e6 {[%emt 0:00:00]} 7. a4 {[%emt 0:01:30]} c5 {[%emt 0:03:00]} 8. a5 {[%emt 0:00:30]} Qd8 {[%emt 0:00:30]} 9. Bb5+ {[%emt 0:00:30]} Nc6 {[%emt 0:00:30]} 10. Ne5 {[%emt 0:00:30]} Rc8 {[%emt 0:00:30]} 11. a6 {[%emt 0:00:30]} Qb6 {[%emt 0:05:30]} 12. axb7 {[%emt 0:00:30]} Qxb7 {[%emt 0:00:30]} 13. Bxc6+ {[%emt 0:02:30]} Rxc6 {[%emt 0:00:30]} 14. Nxc6 {[%emt 0:00:30]} Qxc6 {[%emt 0:00:30]} 15. Rxa7 {[%emt 0:00:30]} cxd4 {[%emt 0:00:30]} 16. exd4 {[%emt 0:01:30]} Nd7 {[%emt 0:01:30]} 17. O-O {[%emt 0:01:30]} Be7 {[%emt 0:00:30]} 18. Rc7 {[%emt 0:00:00]} Qb6 {[%emt 0:00:00]} 19. Qa1 {[%emt 0:03:00]} Bd8 {[%emt 0:00:00]} 20. Ra7 {[%emt 0:00:30]} Bxc2 {[%emt 0:04:30]} 21. Rc1 {[%emt 0:00:30]} Bd3 {[%emt 0:00:30]} 22. Rc8 {[%emt 0:00:30]} Qb4 {[%emt 0:03:30]} 23. Rxd8+ {[%emt 0:03:30]} Kxd8 {[%emt 0:00:30]} 24. Ra8+ {[%emt 0:00:00]} Ke7 {[%emt 0:00:30]} 25. Rxh8 {[%emt 0:00:00]} e5 {[%emt 0:00:00]} 26. Be3 {[%emt 0:02:30]} exd4 {[%emt 0:00:00]} 27. Bf4 {[%emt 0:00:00]} Kf6 {[%emt 0:00:30]} 28. Qa3 {[%emt 0:01:00]} Qb5 {[%emt 0:00:30]} 29. g4 {[%emt 0:01:30]} Nc5 {[%emt 0:00:30]} 30. Rb8 {[%emt 0:01:30]} Qc6 {[%emt 0:00:00]} 31. b4 {[%emt 0:01:30]} Ne6 {[%emt 0:00:00]} 32. g5+ {[%emt 0:00:30]} Kf5 {[%emt 0:00:30]} 33. Qxd3+ {[%emt 0:00:30]} Kxf4 {[%emt 0:00:00]} 34. Nb3 {[%emt 0:04:30]} Kxg5 {[%emt 0:01:00]} 35. b5 {[%emt 0:02:30]} Qc4 {[%emt 0:01:30]} 36. Qxc4 {[%emt 0:04:30]} dxc4 {[%emt 0:00:00]} 37. Na5 {[%emt 0:00:00]} c3 {[%emt 0:01:00]} 38. Rc8 {[%emt 0:00:00]} Nf4 {[%emt 0:00:30]} 39. Nb3 {[%emt 0:00:30]} d3 {[%emt 0:00:00]} 40. Kf1 {[%emt 0:00:30]} d2 {[%emt 0:00:00]} 41. Nxd2 {[%emt 0:00:30]} cxd2 {[%emt 0:00:30]} 42. Rd8 {[%emt 0:00:30]} Ne6 {[%emt 0:00:30]} 43. Rxd2 {[%emt 0:00:30]} Kf6 {[%emt 0:00:30]} 44. b6 {[%emt 0:00:30]} Nc5 {[%emt 0:00:00]} 45. Rc2 {[%emt 0:00:00]} Nd7 {[%emt 0:02:00]} 46. b7 {[%emt 0:00:00]} Ke6 {[%emt 0:00:00]} 47. Rd2 {[%emt 0:00:30]} Nb8 {[%emt 0:00:00]} 48. Rd8 {[%emt 0:00:30]} Nc6 {[%emt 0:00:30]} 49. b8=Q {[%emt 0:00:00]} Nxb8 {[%emt 0:00:30]} 50. Rxb8 {[%emt 0:00:00]} 1-0

[Event "5th Baskent University Open 2022"]
[Site "Ankara"]
[Date "2022.06.26"]
[Round "1.3"]
[White "Algul, Deniz Bilge"]
[Black "Uzun, Anil"]
[Result "1/2-1/2"]
[ECO "C07"]
[WhiteElo "1519"]
[BlackElo "1578"]
[Annotator "NA RC"]
[PlyCount "20"]
[EventDate "2022.07.02"]
[EventType "swiss"]
[EventCountry "TUR"]
[SourceTitle "playchess.com"]
[Source "ChessBase"]
[SourceQuality "1"]
[TimeControl "5400+30"]

1. e4 e6 2. d4 d5 3. Nd2 c5 4. exd5 Qxd5 5. Ngf3 cxd4 6. Bc4 Qd6 7. Nb3 Qb4+ 8. Nfd2 Nc6 9. a3 Qb6 10. O-O Be7 {[%emt 0:31:30]} 1/2-1/2

[Event "5th Baskent University Open 2022"]
[Site "Ankara"]
[Date "2022.06.26"]
[Round "1.5"]
[White "Smirnov, Matvey"]
[Black "Goksel, Mehmet Yigit"]
[Result "1/2-1/2"]
[ECO "C54"]
[WhiteElo "1390"]
[BlackElo "1358"]
[Annotator "NA RC"]
[PlyCount "131"]
[EventDate "2022.07.02"]
[EventType "swiss"]
[EventCountry "TUR"]
[SourceTitle "playchess.com"]
[Source "ChessBase"]
[SourceQuality "1"]
[TimeControl "5400+30"]

1. e4 e5 2. Nf3 Nc6 3. Bc4 Bc5 4. c3 Nf6 5. d4 exd4 6. cxd4 Bb4+ 7. Nc3 d5 8. exd5 Nxd5 9. O-O Bxc3 10. bxc3 O-O 11. Ba3 {[%emt 0:34:00]} Re8 {[%emt 0:34:00]} 12. Qd2 {[%emt 0:00:30]} h6 {[%emt 0:04:30]} 13. h3 {[%emt 0:00:30]} Be6 {[%emt 0:00:30]} 14. Bd3 {[%emt 0:00:30]} Nb6 {[%emt 0:05:30]} 15. Qc2 {[%emt 0:00:30]} Qf6 {[%emt 0:00:00]} 16. Be4 {[%emt 0:02:30]} Nc4 {[%emt 0:04:00]} 17. Bc1 {[%emt 0:00:30]} Nd6 {[%emt 0:01:30]} 18. Re1 {[%emt 0:01:30]} Nxe4 {[%emt 0:00:30]} 19. Qxe4 {[%emt 0:00:30]} Bxh3 {[%emt 0:03:30]} 20. Ne5 {[%emt 0:01:30]} Bf5 {[%emt 0:01:30]} 21. Qf4 {[%emt 0:00:00]} Nxe5 {[%emt 0:01:30]} 22. dxe5 {[%emt 0:00:00]} Qg6 {[%emt 0:00:30]} 23. f3 {[%emt 0:00:30]} Rad8 {[%emt 0:01:30]} 24. Be3 {[%emt 0:00:30]} Rd3 {[%emt 0:03:30]} 25. g4 {[%emt 0:00:30]} Be6 {[%emt 0:00:30]} 26. c4 {[%emt 0:01:30]} Red8 {[%emt 0:00:30]} 27. Bxa7 {[%emt 0:00:30]} b6 {[%emt 0:00:00]} 28. c5 {[%emt 0:00:30]} R3d4 {[%emt 0:00:00]} 29. Re4 {[%emt 0:00:30]} Rxe4 {[%emt 0:00:30]} 30. Qxe4 {[%emt 0:00:00]} Qxe4 {[%emt 0:02:30]} 31. fxe4 {[%emt 0:00:00]} bxc5 {[%emt 0:00:30]} 32. Bxc5 {[%emt 0:00:30]} Bxg4 {[%emt 0:00:30]} 33. a4 {[%emt 0:00:00]} Rd1+ {[%emt 0:05:30]} 34. Rxd1 {[%emt 0:00:00]} Bxd1 {[%emt 0:00:30]} 35. a5 {[%emt 0:00:00]} Be2 {[%emt 0:01:30]} 36. Kf2 {[%emt 0:00:00]} Bb5 {[%emt 0:00:30]} 37. Ke3 {[%emt 0:00:00]} g5 {[%emt 0:00:30]} 38. Kd4 {[%emt 0:00:00]} c6 {[%emt 0:00:30]} 39. Bd6 {[%emt 0:00:30]} h5 {[%emt 0:00:30]} 40. Be7 {[%emt 0:00:30]} g4 {[%emt 0:00:30]} 41. Bh4 {[%emt 0:00:30]} Kf8 {[%emt 0:00:30]} 42. Kc5 {[%emt 0:00:30]} Ke8 {[%emt 0:00:30]} 43. Kb6 {[%emt 0:00:30]} Kd7 {[%emt 0:00:30]} 44. Kc5 {[%emt 0:00:30]} Ke6 {[%emt 0:00:30]} 45. Kd4 {[%emt 0:00:30]} Bf1 {[%emt 0:00:30]} 46. Bf6 {[%emt 0:00:30]} c5+ {[%emt 0:00:30]} 47. Kxc5 {[%emt 0:00:30]} g3 {[%emt 0:00:30]} 48. Bh4 {[%emt 0:00:30]} g2 {[%emt 0:00:30]} 49. Bf2 {[%emt 0:00:30]} h4 {[%emt 0:00:30]} 50. Kd4 {[%emt 0:00:30]} h3 {[%emt 0:00:30]} 51. Bg1 {[%emt 0:00:30]} Ba6 {[%emt 0:00:30]} 52. Bh2 {[%emt 0:00:30]} Bb7 {[%emt 0:00:30]} 53. Bg1 {[%emt 0:00:30]} Ke7 {[%emt 0:00:30]} 54. Ke3 {[%emt 0:00:30]} Kd7 {[%emt 0:00:30]} 55. Kf4 {[%emt 0:00:30]} Kc6 {[%emt 0:00:30]} 56. Kg3 {[%emt 0:00:30]} Bc8 {[%emt 0:00:30]} 57. a6 {[%emt 0:00:00]} Bxa6 {[%emt 0:06:30]} 58. Kxh3 {[%emt 0:00:00]} Bf1 {[%emt 0:00:30]} 59. Kh2 {[%emt 0:00:00]} Kb5 {[%emt 0:00:30]} 60. Bf2 {[%emt 0:00:00]} Kc4 {[%emt 0:00:30]} 61. Bh4 {[%emt 0:00:00]} Kd3 {[%emt 0:00:30]} 62. Kg1 {[%emt 0:00:00]} Ke3 {[%emt 0:00:30]} 63. Bf6 {[%emt 0:00:00]} Kf3 {[%emt 0:00:30]} 64. e6 {[%emt 0:00:00]} fxe6 {[%emt 0:00:30]} 65. e5 {[%emt 0:00:00]} Bc4 {[%emt 0:00:30]} 66. Bg7 {[%emt 0:00:00]} 1/2-1/2

[Event "5th Baskent University Open 2022"]
[Site "Ankara"]
[Date "2022.06.26"]
[Round "1.6"]
[White "Simsek, Ayaz"]
[Black "Celebi, Mehmet Alper"]
[Result "0-1"]
[ECO "B22"]
[WhiteElo "1477"]
[BlackElo "1515"]
[Annotator "NA RC"]
[PlyCount "72"]
[EventDate "2022.07.02"]
[EventType "swiss"]
[EventCountry "TUR"]
[SourceTitle "playchess.com"]
[Source "ChessBase"]
[SourceQuality "1"]
[TimeControl "5400+30"]

1. e4 c5 2. c3 e6 3. d4 cxd4 4. cxd4 Nf6 5. e5 Nd5 {[%emt 0:36:00]} 6. Nf3 {[%emt 0:31:30]} d6 {[%emt 0:02:30]} 7. exd6 {[%emt 0:00:30]} Bxd6 {[%emt 0:00:30]} 8. Nc3 {[%emt 0:00:00]} Bc7 {[%emt 0:01:30]} 9. Bd3 {[%emt 0:01:00]} Nc6 {[%emt 0:01:30]} 10. O-O {[%emt 0:00:00]} O-O {[%emt 0:01:30]} 11. Qe2 {[%emt 0:01:00]} h6 {[%emt 0:03:30]} 12. Qe4 {[%emt 0:01:30]} Nf6 {[%emt 0:00:30]} 13. Qh4 {[%emt 0:00:30]} e5 {[%emt 0:06:30]} 14. dxe5 {[%emt 0:01:30]} Nxe5 {[%emt 0:01:30]} 15. Nxe5 {[%emt 0:00:30]} Bxe5 {[%emt 0:00:30]} 16. Rd1 {[%emt 0:00:30]} Qb6 {[%emt 0:03:30]} 17. Be3 {[%emt 0:01:30]} Qxb2 {[%emt 0:03:30]} 18. Ne4 {[%emt 0:00:00]} Bf5 {[%emt 0:00:30]} 19. Rab1 {[%emt 0:01:00]} Qxa2 {[%emt 0:02:30]} 20. Bc4 {[%emt 0:04:30]} Qa5 {[%emt 0:05:30]} 21. Rb5 {[%emt 0:00:30]} Qc7 {[%emt 0:00:30]} 22. Rc5 {[%emt 0:00:30]} Qe7 {[%emt 0:02:30]} 23. Nxf6+ {[%emt 0:01:30]} Bxf6 {[%emt 0:00:30]} 24. Qg3 {[%emt 0:00:30]} Bh7 {[%emt 0:01:30]} 25. Rc7 {[%emt 0:01:30]} Qe5 {[%emt 0:03:30]} 26. Bf4 {[%emt 0:00:30]} Qh5 {[%emt 0:00:30]} 27. Rdd7 {[%emt 0:00:30]} Rad8 {[%emt 0:02:30]} 28. Qb3 {[%emt 0:01:30]} Rxd7 {[%emt 0:00:30]} 29. Rxd7 {[%emt 0:00:30]} Bg6 {[%emt 0:00:30]} 30. Rxb7 {[%emt 0:04:30]} Be4 {[%emt 0:01:30]} 31. Rxa7 {[%emt 0:05:30]} Qg4 {[%emt 0:00:30]} 32. g3 {[%emt 0:01:30]} Rd8 {[%emt 0:00:30]} 33. Rxf7 {[%emt 0:01:30]} Rd1+ {[%emt 0:00:30]} 34. Bf1 {[%emt 0:00:00]} Bd5 {[%emt 0:00:30]} 35. Qb8+ {[%emt 0:01:00]} Kxf7 {[%emt 0:00:30]} 36. Bd6 {[%emt 0:00:30]} Rxf1+ {[%emt 0:00:30]} 0-1

[Event "5th Baskent University Open 2022"]
[Site "Ankara"]
[Date "2022.06.26"]
[Round "1.7"]
[White "Demirbag, Ertugrul"]
[Black "Sari, Engin"]
[Result "0-1"]
[ECO "A45"]
[WhiteElo "1344"]
[BlackElo "1410"]
[Annotator "NA RC"]
[PlyCount "70"]
[EventDate "2022.07.02"]
[EventType "swiss"]
[EventCountry "TUR"]
[SourceTitle "playchess.com"]
[Source "ChessBase"]
[SourceQuality "1"]
[TimeControl "5400+30"]

1. d4 Nf6 2. Bf4 d6 3. Nc3 c6 4. e3 g6 5. Nf3 Bg7 6. Bd3 O-O 7. O-O {[%emt 0:34:00]} Nfd7 {[%emt 0:38:00]} 8. Bc4 {[%emt 0:02:30]} d5 {[%emt 0:00:30]} 9. Bb3 {[%emt 0:01:30]} Re8 {[%emt 0:06:30]} 10. e4 {[%emt 0:00:30]} e6 {[%emt 0:06:30]} 11. Re1 {[%emt 0:02:30]} Nb6 {[%emt 0:09:30]} 12. a4 {[%emt 0:01:30]} a5 {[%emt 0:00:30]} 13. Qe2 {[%emt 0:01:30]} Bd7 {[%emt 0:03:30]} 14. Qd2 {[%emt 0:02:30]} Na6 {[%emt 0:02:30]} 15. Bh6 {[%emt 0:00:30]} f5 {[%emt 0:01:30]} 16. exf5 {[%emt 0:01:30]} exf5 {[%emt 0:00:30]} 17. Rxe8+ {[%emt 0:01:30]} Bxe8 {[%emt 0:01:30]} 18. Re1 {[%emt 0:01:30]} Nc7 {[%emt 0:02:30]} 19. Qf4 {[%emt 0:01:30]} Nd7 {[%emt 0:01:30]} 20. Bxg7 {[%emt 0:01:30]} Kxg7 {[%emt 0:00:30]} 21. Ng5 {[%emt 0:00:30]} Bf7 {[%emt 0:01:30]} 22. Nxf7 {[%emt 0:02:30]} Kxf7 {[%emt 0:00:30]} 23. g4 {[%emt 0:01:30]} Ne6 {[%emt 0:01:30]} 24. Qh6 {[%emt 0:00:30]} Qg8 {[%emt 0:10:43]} 25. gxf5 {[%emt 0:04:30]} gxf5+ {[%emt 0:00:30]} 26. Kh1 {[%emt 0:00:30]} Qg6 {[%emt 0:00:00]} 27. Qe3 {[%emt 0:00:00]} Rg8 {[%emt 0:00:38]} 28. Qg3 {[%emt 0:04:00]} Qh5 {[%emt 0:04:48]} 29. Qe3 {[%emt 0:01:30]} Qg6 {[%emt 0:00:14]} 30. Qg3 {[%emt 0:00:30]} f4 {[%emt 0:01:11]} 31. Qh3 {[%emt 0:01:30]} Nb6 {[%emt 0:02:03]} 32. Ne2 {[%emt 0:00:30]} Ng5 {[%emt 0:02:11]} 33. Qg4 {[%emt 0:00:30]} Qe4+ {[%emt 0:00:30]} 34. f3 {[%emt 0:01:30]} Nxf3 {[%emt 0:01:39]} 35. Qh5+ {[%emt 0:03:30]} Ke7 {[%emt 0:00:19]} 0-1

[Event "5th Baskent University Open 2022"]
[Site "Ankara"]
[Date "2022.06.26"]
[Round "1.8"]
[White "Topak, Elif Sinem"]
[Black "Yuksel, Hasan Kemal"]
[Result "0-1"]
[ECO "C47"]
[WhiteElo "1368"]
[BlackElo "1284"]
[Annotator "NA RC"]
[PlyCount "108"]
[EventDate "2022.07.02"]
[EventType "swiss"]
[EventCountry "TUR"]
[SourceTitle "playchess.com"]
[Source "ChessBase"]
[SourceQuality "1"]
[TimeControl "5400+30"]

1. e4 e5 2. Nf3 Nf6 3. Nc3 Nc6 4. Be2 Bb4 5. Nd5 Bc5 6. O-O O-O 7. Nxf6+ Qxf6 8. c3 h6 9. d3 d6 10. Be3 Bb6 11. d4 exd4 12. cxd4 Bg4 13. d5 Ne5 14. Nxe5 Bxe2 15. Qxe2 Qxe5 16. Bxb6 axb6 17. a3 Rfe8 18. Rae1 c6 19. Qd2 Ra4 20. b4 Rxa3 21. f4 Qc3 22. Qf2 Qxb4 23. dxc6 bxc6 24. e5 dxe5 25. fxe5 Qc5 26. Qxc5 bxc5 27. Rc1 Rxe5 28. Rf2 Rae3 29. Rfc2 Re1+ 30. Kf2 Rxc1 31. Rxc1 f6 32. Kf3 Kf7 33. g4 h5 34. gxh5 Rxh5 35. Kg4 Rd5 36. Kf4 g5+ 37. Kg4 Kg6 38. Kg3 f5 39. h3 Kf6 40. Kf3 Ke6 41. Rg1 f4 42. h4 Rd3+ 43. Kf2 gxh4 44. Rg4 c4 45. Rxh4 c3 46. Rxf4 Kd5 47. Ke2 c2 48. Rf1 Rd1 49. Rxd1+ cxd1=Q+ 50. Kxd1 Kc4 51. Kd2 Kb3 52. Kc1 c5 53. Kd2 c4 54. Kc1 Kc3 0-1

[Event "5th Baskent University Open 2022"]
[Site "Ankara"]
[Date "2022.06.26"]
[Round "1.12"]
[White "Sarisin, Ali Bora"]
[Black "Donali, Mahmut"]
[Result "1-0"]
[ECO "B21"]
[WhiteElo "1224"]
[BlackElo "1308"]
[Annotator "NA RC"]
[PlyCount "49"]
[EventDate "2022.07.02"]
[EventType "swiss"]
[EventCountry "TUR"]
[SourceTitle "playchess.com"]
[Source "ChessBase"]
[SourceQuality "1"]
[TimeControl "5400+30"]

1. e4 c5 2. d4 cxd4 3. c3 dxc3 4. Nxc3 e6 5. Nf3 Nc6 6. Bc4 a6 7. O-O Qc7 8. Qe2 Be7 {[%emt 0:32:30]} 9. Rd1 {[%emt 0:36:00]} Bf6 {[%emt 0:03:30]} 10. Bb3 {[%emt 0:04:30]} Nge7 {[%emt 0:01:30]} 11. Be3 {[%emt 0:00:30]} Bxc3 {[%emt 0:00:30]} 12. bxc3 {[%emt 0:00:30]} O-O {[%emt 0:00:30]} 13. Bc5 {[%emt 0:01:30]} Re8 {[%emt 0:01:30]} 14. Bd6 {[%emt 0:04:30]} Qa5 {[%emt 0:00:30]} 15. Rd3 {[%emt 0:04:30]} b5 {[%emt 0:02:30]} 16. Ng5 {[%emt 0:03:30]} h6 {[%emt 0:03:30]} 17. Nxf7 {[%emt 0:03:30]} Kxf7 {[%emt 0:06:30]} 18. Qh5+ {[%emt 0:00:30]} g6 {[%emt 0:00:30]} 19. Qxh6 {[%emt 0:00:00]} Rg8 {[%emt 0:00:30]} 20. Qh7+ {[%emt 0:05:00]} Ke8 {[%emt 0:01:30]} 21. Bd5 {[%emt 0:01:30]} Rf8 {[%emt 0:04:30]} 22. Bxc6 {[%emt 0:08:30]} Nxc6 {[%emt 0:02:30]} 23. Qxg6+ {[%emt 0:01:30]} Kd8 {[%emt 0:01:30]} 24. Qg5+ {[%emt 0:00:30]} Ke8 {[%emt 0:00:00]} 25. Bxf8 {[%emt 0:01:30]} 1-0

[Event "5th Baskent University Open 2022"]
[Site "Ankara"]
[Date "2022.06.26"]
[Round "1.13"]
[White "Atar, Sefa"]
[Black "Erdem, Osman"]
[Result "1/2-1/2"]
[ECO "B75"]
[WhiteElo "1272"]
[BlackElo "1303"]
[Annotator "NA RC"]
[PlyCount "122"]
[EventDate "2022.07.02"]
[EventType "swiss"]
[EventCountry "TUR"]
[SourceTitle "playchess.com"]
[Source "ChessBase"]
[SourceQuality "1"]
[TimeControl "5400+30"]

1. e4 c5 2. Nf3 d6 3. d4 cxd4 4. Nxd4 Nf6 5. Nc3 g6 6. f3 Bg7 7. Be3 Nc6 8. Qd2 Bd7 9. O-O-O Rc8 {[%emt 0:34:00]} 10. Nxc6 {[%emt 0:33:30]} Bxc6 {[%emt 0:01:30]} 11. Bc4 {[%emt 0:03:30]} a6 {[%emt 0:03:30]} 12. Bh6 {[%emt 0:02:30]} O-O {[%emt 0:00:30]} 13. Bxg7 {[%emt 0:02:30]} Kxg7 {[%emt 0:00:30]} 14. h4 {[%emt 0:00:30]} h5 {[%emt 0:02:30]} 15. Bd5 {[%emt 0:05:30]} b5 {[%emt 0:02:30]} 16. Bxc6 {[%emt 0:01:30]} Rxc6 {[%emt 0:00:30]} 17. Rdg1 {[%emt 0:07:30]} b4 {[%emt 0:02:30]} 18. Nd5 {[%emt 0:01:30]} Nxd5 {[%emt 0:01:30]} 19. Qxd5 {[%emt 0:01:30]} Qb6 {[%emt 0:04:30]} 20. g4 {[%emt 0:03:30]} Rfc8 {[%emt 0:01:30]} 21. gxh5 {[%emt 0:13:30]} Rxc2+ {[%emt 0:02:30]} 22. Kb1 {[%emt 0:00:30]} R2c5 {[%emt 0:03:30]} 23. h6+ {[%emt 0:01:30]} Kf8 {[%emt 0:05:30]} 24. h7 {[%emt 0:03:49]} Kg7 {[%emt 0:00:30]} 25. h8=Q+ {[%emt 0:04:01]} Rxh8 {[%emt 0:01:30]} 26. Qd4+ {[%emt 0:05:29]} Kg8 {[%emt 0:01:30]} 27. Qe3 {[%emt 0:02:14]} Rb5 {[%emt 0:04:30]} 28. Qxb6 {[%emt 0:01:06]} Rxb6 {[%emt 0:00:30]} 29. h5 {[%emt 0:00:30]} Kg7 {[%emt 0:01:30]} 30. Kc2 {[%emt 0:01:04]} Rb5 {[%emt 0:00:30]} 31. hxg6 {[%emt 0:00:30]} Rxh1 {[%emt 0:02:30]} 32. Rxh1 {[%emt 0:00:00]} Kxg6 {[%emt 0:00:00]} 33. Kd3 {[%emt 0:00:59]} Rc5 {[%emt 0:01:00]} 34. Rh2 {[%emt 0:00:35]} d5 {[%emt 0:01:30]} 35. Kd4 {[%emt 0:01:18]} Ra5 {[%emt 0:01:30]} 36. b3 {[%emt 0:01:17]} dxe4 {[%emt 0:00:30]} 37. fxe4 {[%emt 0:00:34]} e5+ {[%emt 0:01:30]} 38. Kc4 {[%emt 0:00:40]} Rb5 {[%emt 0:00:30]} 39. Rf2 {[%emt 0:01:17]} Rb7 {[%emt 0:01:30]} 40. Kd5 {[%emt 0:01:27]} f6 {[%emt 0:01:30]} 41. Ke6 {[%emt 0:02:02]} Rb6+ {[%emt 0:00:30]} 42. Kd5 {[%emt 0:00:11]} Kf7 {[%emt 0:00:30]} 43. Kc5 {[%emt 0:00:33]} Rb8 {[%emt 0:01:32]} 44. Rd2 {[%emt 0:00:41]} Ke7 {[%emt 0:02:08]} 45. Rh2 {[%emt 0:01:12]} Ke6 {[%emt 0:01:13]} 46. Rd2 {[%emt 0:00:54]} Ke7 {[%emt 0:00:10]} 47. Rh2 {[%emt 0:00:00]} a5 {[%emt 0:03:20]} 48. Rh7+ {[%emt 0:00:19]} Ke6 {[%emt 0:00:00]} 49. Ra7 {[%emt 0:00:00]} Rc8+ {[%emt 0:00:29]} 50. Kb5 {[%emt 0:00:40]} Rd8 {[%emt 0:00:26]} 51. Rxa5 {[%emt 0:01:01]} Rd4 {[%emt 0:00:14]} 52. Ra4 {[%emt 0:00:59]} Rxe4 {[%emt 0:00:21]} 53. Rxb4 {[%emt 0:00:13]} Rxb4+ {[%emt 0:00:54]} 54. Kxb4 {[%emt 0:00:04]} Kd5 {[%emt 0:00:00]} 55. a4 {[%emt 0:00:59]} Kd4 {[%emt 0:01:02]} 56. a5 {[%emt 0:01:57]} e4 {[%emt 0:00:17]} 57. a6 {[%emt 0:00:38]} e3 {[%emt 0:00:30]} 58. a7 {[%emt 0:00:30]} e2 {[%emt 0:00:00]} 59. Kb5 {[%emt 0:00:00]} e1=Q {[%emt 0:00:11]} 60. a8=Q {[%emt 0:00:00]} Qe2+ {[%emt 0:00:09]} 61. Kb4 {[%emt 0:00:04]} Ke5 {[%emt 0:00:30]} 1/2-1/2

[Event "5th Baskent University Open 2022"]
[Site "Ankara"]
[Date "2022.06.26"]
[Round "1.14"]
[White "Buzlu, Doga Piril"]
[Black "Dogan, Emre Kagan"]
[Result "1-0"]
[ECO "C05"]
[WhiteElo "1181"]
[BlackElo "1175"]
[Annotator "NA RC"]
[PlyCount "66"]
[EventDate "2022.07.02"]
[EventType "swiss"]
[EventCountry "TUR"]
[SourceTitle "playchess.com"]
[Source "ChessBase"]
[SourceQuality "1"]
[TimeControl "5400+30"]

1. e4 e6 2. d4 d5 3. Nd2 Nf6 4. e5 Nfd7 5. Ngf3 c5 6. c3 Nc6 7. Bb5 {[%emt 0:34:00]} Qb6 {[%emt 0:38:00]} 8. Bxc6 {[%emt 0:01:30]} Qxc6 {[%emt 0:00:30]} 9. O-O {[%emt 0:02:30]} Be7 {[%emt 0:03:30]} 10. Re1 {[%emt 0:01:30]} O-O {[%emt 0:01:30]} 11. Nf1 {[%emt 0:03:30]} f6 {[%emt 0:05:30]} 12. exf6 {[%emt 0:01:30]} Bxf6 {[%emt 0:00:30]} 13. Ng3 {[%emt 0:04:30]} Nb6 {[%emt 0:11:30]} 14. Bg5 {[%emt 0:02:30]} Nc4 {[%emt 0:08:30]} 15. Qc2 {[%emt 0:06:30]} cxd4 {[%emt 0:02:30]} 16. cxd4 {[%emt 0:01:30]} e5 {[%emt 0:04:30]} 17. Bxf6 {[%emt 0:04:30]} Rxf6 {[%emt 0:01:30]} 18. b3 {[%emt 0:08:30]} e4 {[%emt 0:01:36]} 19. Nd2 {[%emt 0:02:30]} Nxd2 {[%emt 0:02:56]} 20. Qxd2 {[%emt 0:00:30]} Bd7 {[%emt 0:00:51]} 21. Rac1 {[%emt 0:01:30]} Qb6 {[%emt 0:02:29]} 22. Rc5 {[%emt 0:01:30]} Bc6 {[%emt 0:01:01]} 23. Nh5 {[%emt 0:03:30]} Rf7 {[%emt 0:03:41]} 24. Nf4 {[%emt 0:03:24]} Raf8 {[%emt 0:00:47]} 25. g3 {[%emt 0:03:50]} Qd8 {[%emt 0:00:39]} 26. Ne6 {[%emt 0:01:46]} Qe7 {[%emt 0:04:55]} 27. Nxf8 {[%emt 0:00:52]} Qxf8 {[%emt 0:00:03]} 28. b4 {[%emt 0:01:04]} a6 {[%emt 0:00:31]} 29. Qc2 {[%emt 0:00:41]} Rf3 {[%emt 0:00:19]} 30. a4 {[%emt 0:00:48]} Bxa4 {[%emt 0:03:28]} 31. Qxa4 {[%emt 0:00:59]} Rxf2 {[%emt 0:00:04]} 32. Qb3 {[%emt 0:01:18]} Rf5 {[%emt 0:01:53]} 33. Rxd5 {[%emt 0:01:21]} Qd8 {[%emt 0:02:03]} 1-0